bitfinex/quotes_SOLUSD_20250111
["timestamp","ask_amount","ask_price","bid_price","bid_amount"]
[1736570304655,9.02848587,185.5,185.44,23.776884]
[1736570305349,36.11394348,185.58,185.5,23.776884]
[1736570305350,9.02848587,185.53,185.5,23.776884]
[1736570305525,1.01051918,185.57,185.5,23.776884]
[1736570305729,9.02848587,185.51,185.48,20.0]
[1736570305958,9.02848587,185.5,185.48,20.0]
[1736570306955,9.02848587,185.49,185.48,20.0]
[1736570307126,9.02848587,185.49,185.45,4.6]
[1736570307332,2.6415291,185.55,185.45,4.6]
[1736570307333,9.02848587,185.47,185.45,4.6]
[1736570308054,9.02848587,185.48,185.45,4.6]
[1736570311059,9.02848587,185.49,185.45,4.6]
[1736570311857,9.02848587,185.48,185.45,4.6]
[1736570312047,9.02848587,185.47,185.45,4.6]
[1736570312646,9.02848587,185.48,185.45,4.6]
[1736570314258,9.02848587,185.46,185.4,1.6441]
[1736570314457,9.02848587,185.45,185.4,1.6441]
[1736570314854,9.02848587,185.45,185.42,20.0]
[1736570316455,9.02848587,185.44,185.39,6.0001]
[1736570316657,9.02848587,185.43,185.39,6.0001]
[1736570316847,9.02848587,185.42,185.36,4.72]
[1736570317161,9.02848587,185.42,185.38,20.0]
[1736570319264,9.02848587,185.43,185.38,20.0]
[1736570321656,1.011145,185.48,185.38,20.0]
[1736570321850,9.02848587,185.46,185.39,23.776884]
[1736570322368,9.02848587,185.46,185.38,0.41528595]
[1736570322369,9.02848587,185.45,185.4,20.0]
[1736570323064,9.02848587,185.45,185.4,23.776884]
[1736570323868,9.02848587,185.45,185.39,23.776884]
[1736570325474,9.02848587,185.46,185.39,23.776884]
[1736570326566,9.02848587,185.46,185.4,20.0]
[1736570329254,9.02848587,185.47,185.4,20.0]
[1736570329776,9.02848587,185.51,185.45,23.776884]
[1736570330448,9.02848587,185.53,185.46,0.41440685]
[1736570330666,9.02848587,185.53,185.45,24.19105408]
[1736570331053,9.02848587,185.53,185.47,23.776884]
[1736570331447,9.02848587,185.52,185.47,23.776884]
[1736570333373,1.01074872,185.56,185.5,20.0]
[1736570333565,9.02848587,185.56,185.51,23.776884]
[1736570334371,9.02848587,185.55,185.48,0.41419012]
[1736570334575,9.02848587,185.55,185.47,24.19070347]
[1736570335272,9.02848587,185.55,185.51,23.776884]
[1736570335856,9.02848587,185.56,185.51,23.776884]
[1736570338965,9.02848587,185.55,185.51,23.776884]
[1736570342289,1.6028,185.58,185.51,23.776884]
[1736570342491,9.02848587,185.54,185.49,20.0]
[1736570342781,9.02848587,185.53,185.49,20.0]
[1736570343284,9.02848587,185.53,185.49,23.776884]
[1736570343583,9.02848587,185.53,185.49,43.776884]
[1736570344079,9.02848587,185.51,185.49,20.0]
[1736570344386,9.02848587,185.52,185.49,20.0]
[1736570347586,9.02848587,185.53,185.49,20.0]
[1736570347882,1.01057938,185.61,185.53,20.0]
[1736570348181,9.02848587,185.58,185.53,20.0]
[1736570348381,9.02848587,185.59,185.53,20.0]
[1736570349465,9.02848587,185.58,185.54,20.0]
[1736570350890,9.02848587,185.59,185.54,20.0]
[1736570353786,9.02848587,185.59,185.55,23.776884]
[1736570357298,9.02848587,185.58,185.54,20.0]
[1736570357470,9.02848587,185.55,185.53,20.0]
[1736570357898,9.02848587,185.56,185.53,20.0]
[1736570359706,9.02848587,185.55,185.49,141.7305]
[1736570359870,9.02848587,185.54,185.52,20.0]
[1736570360893,9.02848587,185.54,185.5,23.776884]
[1736570361213,9.02848587,185.53,185.49,20.0]
[1736570363001,9.02848587,185.54,185.49,20.0]
[1736570364003,9.02848587,185.55,185.5,23.776884]
[1736570366394,1.01054112,185.58,185.5,23.776884]
[1736570366579,9.02848587,185.56,185.5,23.776884]
[1736570367299,9.02848587,185.57,185.5,159.79064665]
[1736570367500,9.02848587,185.57,185.5,159.376884]
[1736570367694,9.02848587,185.6,185.54,23.776884]
[1736570367999,9.02848587,185.6,185.54,24.19016391]
[1736570368875,1.5772,185.62,185.54,159.79016391]
[1736570369077,9.02848587,185.61,185.54,159.376884]
[1736570369308,9.02848587,185.6,185.54,159.376884]
[1736570372115,9.02848587,185.61,185.54,159.376884]
[1736570372311,9.02848587,185.62,185.55,0.41324377]
[1736570373806,9.02848587,185.61,185.56,23.776884]
[1736570374008,9.02848587,185.62,185.56,159.376884]
[1736570385826,9.02848587,185.61,185.56,159.376884]
[1736570386628,9.02848587,185.62,185.56,159.376884]
[1736570387432,5.3864,185.66,185.57,0.41306394]
[1736570387606,9.02848587,185.63,185.59,23.776884]
[1736570389124,5.3864,185.66,185.59,23.776884]
[1736570389326,9.02848587,185.63,185.59,23.776884]
[1736570389506,9.02848587,185.64,185.59,23.776884]
[1736570389702,6.39529897,185.69,185.59,23.776884]
[1736570390029,9.02848587,185.64,185.59,24.18958147]
[1736570390405,9.02848587,185.64,185.59,23.776884]
[1736570390603,9.02848587,185.63,185.59,23.776884]
[1736570391817,9.02848587,185.63,185.59,159.376884]
[1736570392146,9.02848587,185.64,185.59,159.376884]
[1736570395133,9.02848587,185.65,185.59,159.376884]
[1736570395604,9.02848587,185.64,185.59,159.376884]
[1736570399035,9.02848587,185.61,185.59,135.6]
[1736570399341,9.02848587,185.6,185.59,135.6]
[1736570400261,9.02848587,185.6,185.54,143.6076]
[1736570400416,9.02848587,185.55,185.54,135.6]
[1736570401330,9.02848587,185.55,185.5,141.6051]
[1736570401641,9.02848587,185.53,185.5,141.6051]
[1736570402166,9.02848587,185.53,185.5,135.6]
[1736570403753,9.02848587,185.54,185.5,135.6]
[1736570406552,9.02848587,185.55,185.5,135.6]
[1736570407356,9.02848587,185.54,185.5,135.6]
[1736570407656,9.02848587,185.55,185.5,135.6]
[1736570411656,1.01054183,185.58,185.51,23.776884]
[1736570411860,4.0413,185.59,185.51,159.376884]
[1736570411861,9.02848587,185.57,185.51,159.376884]
[1736570413154,9.02848587,185.56,185.51,159.376884]
[1736570413358,9.02848587,185.57,185.51,159.376884]
[1736570415958,9.02848587,185.56,185.51,159.376884]
[1736570418567,4.0413,185.59,185.51,159.376884]
[1736570418870,9.02848587,185.57,185.51,159.376884]
[1736570420769,9.02848587,185.56,185.51,159.376884]
[1736570421166,9.02848587,185.57,185.51,159.376884]
[1736570421363,9.02848587,185.58,185.52,0.41352884]
[1736570421669,9.02848587,185.58,185.53,23.776884]
[1736570422063,5.05080972,185.62,185.53,23.776884]
[1736570422249,9.02848587,185.58,185.53,23.776884]
[1736570423670,9.02848587,185.57,185.53,23.776884]
[1736570427284,9.02848587,185.58,185.53,23.776884]
[1736570427656,9.02848587,185.58,185.53,159.376884]
[1736570436573,9.02848587,185.57,185.53,159.376884]
[1736570437679,9.02848587,185.57,185.53,135.6]
[1736570437865,9.02848587,185.55,185.53,135.6]
[1736570440673,9.02848587,185.54,185.49,135.6]
[1736570440874,9.02848587,185.5,185.49,135.6]
[1736570444701,9.02848587,185.5,185.45,23.776884]
[1736570444986,9.02848587,185.47,185.44,143.7624]
[1736570446266,9.02848587,185.46,185.44,135.6]
[1736570453467,9.02848587,185.45,185.39,143.7624]
[1736570453674,9.02848587,185.45,185.4,23.776884]
[1736570453866,36.11394348,185.49,185.4,23.776884]
[1736570453867,9.02848587,185.44,185.4,23.776884]
[1736570454511,9.02848587,185.45,185.4,159.376884]
[1736570458209,9.02848587,185.46,185.4,159.376884]
[1736570460568,9.02848587,185.45,185.4,159.376884]
[1736570466994,1.6281,185.52,185.4,159.376884]
[1736570467194,5.6708,185.52,185.41,0.41502284]
[1736570467495,9.02848587,185.49,185.44,159.376884]
[1736570468303,9.02848587,185.48,185.44,159.376884]
[1736570475093,9.02848587,185.49,185.44,159.376884]
[1736570475294,9.02848587,185.48,185.44,159.376884]
[1736570477012,9.02848587,185.49,185.44,159.376884]
[1736570478417,9.02848587,185.48,185.44,159.376884]
[1736570483218,1.6281,185.52,185.44,135.6]
[1736570483219,9.02848587,185.45,185.44,135.6]
[1736570484727,9.02848587,185.46,185.44,135.6]
[1736570494325,9.02848587,185.47,185.44,135.6]
[1736570495326,5.05370556,185.51,185.44,135.6]
[1736570495511,9.02848587,185.47,185.44,135.6]
[1736570495825,5.05370556,185.51,185.44,135.6]
[1736570496016,9.02848587,185.47,185.44,135.6]
[1736570498416,9.02848587,185.46,185.44,135.6]
[1736570502534,9.02848587,185.46,185.43,155.6]
[1736570513832,5.05370556,185.51,185.43,20.0]
[1736570514036,1.6281,185.52,185.44,23.776884]
[1736570514239,9.02848587,185.5,185.44,23.776884]
[1736570514639,1.01096842,185.53,185.47,155.6]
[1736570514837,9.02848587,185.53,185.49,20.0]
[1736570515137,9.02848587,185.54,185.49,155.6]
[1736570516738,9.02848587,185.54,185.49,20.0]
[1736570518937,9.02848587,185.51,185.46,140.18]
[1736570519142,9.02848587,185.5,185.46,140.18]
[1736570519341,9.02848587,185.49,185.46,140.18]
[1736570520940,9.02848587,185.49,185.47,20.0]
[1736570521741,9.02848587,185.5,185.47,20.0]
[1736570522435,9.02848587,185.49,185.47,20.0]
[1736570523741,9.02848587,185.5,185.47,20.0]
[1736570523946,9.02848587,185.51,185.47,20.0]
[1736570527047,2.64893852,185.54,185.47,20.0]
[1736570527430,9.02848587,185.51,185.47,20.0]
[1736570528252,2.64893852,185.54,185.47,20.0]
[1736570528552,9.02848587,185.51,185.47,20.0]
[1736570529650,9.02848587,185.52,185.47,20.0]
[1736570531445,1.01071944,185.57,185.48,0.41434828]
[1736570531640,9.02848587,185.55,185.47,157.1329]
[1736570531950,9.02848587,185.55,185.48,24.19085854]
[1736570532127,9.02848587,185.55,185.48,30.37165854]
[1736570532324,1.6381,185.59,185.51,20.0]
[1736570532528,9.02848587,185.58,185.51,155.6]
[1736570533653,1.01048312,185.61,185.51,155.6]
[1736570533853,9.02848587,185.58,185.51,155.6]
[1736570536461,1.01048312,185.61,185.51,155.6]
[1736570536767,9.02848587,185.58,185.51,155.6]
[1736570536963,9.02848587,185.58,185.52,23.776884]
[1736570537151,9.02848587,185.58,185.52,24.19055347]
[1736570537956,9.02848587,185.56,185.52,135.6]
[1736570538464,9.02848587,185.58,185.52,135.6]
[1736570539273,9.02848587,185.57,185.52,135.6]
[1736570542168,9.02848587,185.53,185.48,141.7808]
[1736570542376,9.02848587,185.51,185.48,141.7808]
[1736570542557,9.02848587,185.5,185.47,137.1329]
[1736570544274,9.02848587,185.51,185.47,1.5329]
[1736570545976,1.01072238,185.56,185.47,1.5329]
[1736570546177,9.02848587,185.52,185.47,137.1329]
[1736570546477,9.02848587,185.53,185.47,137.1329]
[1736570547058,9.02848587,185.55,185.48,24.19102433]
[1736570548163,9.02848587,185.54,185.48,24.19102433]
[1736570548389,9.02848587,185.54,185.48,23.776884]
[1736570548595,9.02848587,185.53,185.48,23.776884]
[1736570550287,9.02848587,185.54,185.48,23.776884]
[1736570550494,9.02848587,185.54,185.48,159.376884]
[1736570551478,9.02848587,185.54,185.48,135.6]
[1736570554499,9.02848587,185.55,185.51,155.6]
[1736570555687,1.01041457,185.6,185.51,155.6]
[1736570555898,9.02848587,185.59,185.52,24.19049818]
[1736570556188,9.02848587,185.58,185.52,24.19049818]
[1736570557491,9.02848587,185.57,185.52,23.776884]
[1736570557672,9.02848587,185.56,185.52,159.376884]
[1736570557983,2.61152952,185.62,185.51,135.6]
[1736570557984,9.02848587,185.53,185.51,135.6]
[1736570558184,36.11394348,185.58,185.49,6.0914]
[1736570558185,9.02848587,185.52,185.49,135.6]
[1736570558390,9.02848587,185.5,185.49,135.6]
[1736570559089,9.02848587,185.5,185.47,135.6]
[1736570559290,9.02848587,185.48,185.47,20.0]
[1736570560093,9.02848587,185.49,185.47,20.0]
[1736570561692,9.02848587,185.48,185.47,20.0]
[1736570563094,9.02848587,185.48,185.44,141.6914]
[1736570563395,9.02848587,185.45,185.44,135.6]
[1736570563580,9.02848587,185.46,185.42,137.2246]
[1736570564889,1.01096934,185.55,185.46,155.6]
[1736570565093,9.02848587,185.51,185.46,155.6]
[1736570565518,9.02848587,185.5,185.46,155.6]
[1736570565812,9.02848587,185.49,185.46,155.6]
[1736570566683,9.02848587,185.48,185.46,20.0]
[1736570566883,9.02848587,185.47,185.46,20.0]
[1736570567277,9.02848587,185.47,185.43,135.6]
[1736570567507,9.02848587,185.46,185.43,135.6]
[1736570568777,1.01094763,185.54,185.44,159.79168866]
[1736570568981,9.02848587,185.49,185.44,159.376884]
[1736570569183,1.01094763,185.54,185.44,159.376884]
[1736570569487,9.02848587,185.5,185.45,142.38445985]
[1736570569678,9.02848587,185.5,185.45,141.9701]
[1736570570616,9.02848587,185.49,185.45,141.9701]
[1736570572490,1.01072522,185.55,185.45,141.9701]
[1736570572491,9.02848587,185.48,185.45,141.9701]
[1736570573011,1.01072522,185.55,185.45,141.9701]
[1736570573220,9.02848587,185.49,185.45,141.9701]
[1736570576701,9.02848587,185.5,185.45,141.9701]
[1736570576907,9.02848587,185.5,185.46,0.41439783]
[1736570580416,9.02848587,185.5,185.46,136.01439783]
[1736570580588,9.02848587,185.5,185.46,135.6]
[1736570582796,1.01060923,185.6,185.47,159.79101187]
[1736570583007,9.02848587,185.53,185.47,159.376884]
[1736570583212,9.02848587,185.53,185.5,20.0]
[1736570585412,9.02848587,185.53,185.51,135.6]
[1736570585626,9.02848587,185.52,185.51,135.6]
[1736570589420,9.02848587,185.52,185.47,135.6]
[1736570589722,9.02848587,185.49,185.47,135.6]
[1736570589915,9.02848587,185.5,185.47,135.6]
[1736570590224,5.05214434,185.57,185.47,135.6]
[1736570590395,9.02848587,185.51,185.47,135.6]
[1736570590907,9.02848587,185.5,185.47,135.6]
[1736570592028,9.02848587,185.51,185.47,135.6]
[1736570594326,9.02848587,185.5,185.47,135.6]
[1736570598916,9.02848587,185.51,185.47,135.6]
[1736570602126,9.02848587,185.51,185.48,23.776884]
[1736570604342,9.02848587,185.51,185.48,159.376884]
[1736570608543,5.05213955,185.57,185.48,159.376884]
[1736570608731,9.02848587,185.51,185.48,159.376884]
[1736570619442,4.0416,185.57,185.48,159.376884]
[1736570619612,9.02848587,185.54,185.49,0.41400291]
[1736570621018,4.0409,185.6,185.5,23.776884]
[1736570621218,4.0409,185.6,185.51,136.01378519]
[1736570621219,9.02848587,185.55,185.51,136.01378519]
[1736570621527,9.02848587,185.55,185.51,135.6]
[1736570621829,9.02848587,185.55,185.51,142.1406]
[1736570622922,9.02848587,185.56,185.51,142.1406]
[1736570623123,9.02848587,185.55,185.51,142.1406]
[1736570623354,9.02848587,185.55,185.54,20.0]
[1736570623556,9.02848587,185.56,185.52,136.01356169]
[1736570623721,9.02848587,185.59,185.56,155.6]
[1736570624522,10.86779565,185.66,185.57,159.376884]
[1736570624739,9.02848587,185.6,185.57,159.376884]
[1736570624944,9.02848587,185.61,185.58,142.55356299]
[1736570625125,40.15334348,185.67,185.58,142.1406]
[1736570625323,9.02848587,185.59,185.58,142.1406]
[1736570625543,9.02848587,185.59,185.58,135.6]
[1736570625932,9.02848587,185.59,185.53,142.1406]
[1736570625933,45.14242935,185.59,185.53,142.1406]
[1736570626245,9.02848587,185.54,185.53,142.1406]
[1736570627354,9.02848587,185.56,185.53,142.1406]
[1736570627749,1.01034912,185.62,185.53,142.1406]
[1736570628057,9.02848587,185.56,185.53,142.1406]
[1736570628548,9.02848587,185.57,185.54,159.376884]
[1736570629535,1.5547,185.65,185.54,159.376884]
[1736570629749,9.02848587,185.58,185.56,23.776884]
[1736570630247,8.52848587,185.59,185.56,159.376884]
[1736570631128,1.5547,185.65,185.56,159.376884]
[1736570631441,1.01016215,185.66,185.56,159.376884]
[1736570631759,9.02848587,185.6,185.56,160.949784]
[1736570631961,9.02848587,185.6,185.57,0.41300755]
[1736570632840,9.02848587,185.61,185.58,159.376884]
[1736570633038,2.51414907,185.69,185.58,159.376884]
[1736570633259,9.02848587,185.62,185.58,159.376884]
[1736570633551,9.02848587,185.62,185.59,0.41274197]
[1736570634160,2.51414907,185.69,185.6,23.776884]
[1736570634161,1.5041,185.69,185.6,23.776884]
[1736570634366,9.02848587,185.64,185.6,23.776884]
[1736570634529,9.02848587,185.66,185.63,155.6]
[1736570634896,5.04789777,185.74,185.64,23.776884]
[1736570635039,9.02848587,185.69,185.65,6.3144]
[1736570635563,9.02848587,185.69,185.66,23.776884]
[1736570635745,9.02848587,185.69,185.66,159.376884]
[1736570637656,9.02848587,185.7,185.66,159.376884]
[1736570637855,6.0719,185.79,185.65,6.3144]
[1736570637856,1.00952886,185.81,185.7,135.6]
[1736570638071,1.5041,185.82,185.71,25.76126535]
[1736570638263,9.02848587,185.77,185.71,161.36126535]
[1736570638467,9.02848587,185.77,185.72,0.41128044]
[1736570638766,1.00928597,185.83,185.74,26.3144]
[1736570638973,9.02848587,185.77,185.74,26.3144]
[1736570639161,1.00928597,185.83,185.74,26.3144]
[1736570639471,9.02848587,185.75,185.72,4.56]
[1736570639665,9.02848587,185.73,185.72,24.56]
[1736570640366,9.02848587,185.73,185.72,20.0]
[1736570640570,9.02848587,185.73,185.69,141.9144]
[1736570640571,9.02848587,185.73,185.69,20.0]
[1736570640882,9.02848587,185.7,185.69,20.0]
[1736570641048,1.0094343,185.75,185.69,20.0]
[1736570641247,9.02848587,185.7,185.69,20.0]
[1736570647975,9.02848587,185.7,185.67,140.16]
[1736570648183,9.02848587,185.68,185.67,4.56]
[1736570648364,1.0094343,185.75,185.67,24.56]
[1736570648678,9.02848587,185.7,185.67,24.56]
[1736570649480,9.02848587,185.69,185.67,24.56]
[1736570650078,9.02848587,185.69,185.67,20.0]
[1736570650658,9.02848587,185.68,185.67,20.0]
[1736570650863,9.02848587,185.68,185.64,142.2172]
[1736570651179,9.02848587,185.65,185.63,135.6]
[1736570651565,9.02848587,185.66,185.63,155.6]
[1736570652775,9.02848587,185.67,185.63,155.6]
[1736570653664,2.55989155,185.72,185.63,135.6]
[1736570653983,9.02848587,185.65,185.63,135.6]
[1736570654780,9.02848587,185.66,185.63,135.6]
[1736570654988,2.55989155,185.72,185.63,135.6]
[1736570655169,9.02848587,185.67,185.63,135.6]
[1736570655683,9.02848587,185.66,185.63,155.6]
[1736570655893,9.02848587,185.65,185.63,135.6]
[1736570656060,9.02848587,185.64,185.59,142.1322]
[1736570656388,9.02848587,185.63,185.59,142.1322]
[1736570663588,4.0385,185.71,185.6,159.376884]
[1736570663765,9.02848587,185.65,185.63,20.0]
[1736570663967,9.02848587,185.66,185.63,20.0]
[1736570664573,9.02848587,185.67,185.63,155.6]
[1736570668497,9.02848587,185.68,185.64,159.789151]
[1736570668690,9.02848587,185.69,185.67,20.0]
[1736570669520,9.02848587,185.69,185.64,137.21360233]
[1736570669991,9.02848587,185.69,185.64,135.6]
[1736570670490,9.02848587,185.67,185.64,135.6]
[1736570670693,9.02848587,185.66,185.59,172.1322]
[1736570670895,9.02848587,185.64,185.6,135.6]
[1736570671796,9.02848587,185.63,185.6,135.6]
[1736570672223,9.02848587,185.64,185.6,135.6]
[1736570672785,9.02848587,185.61,185.54,6.3307]
[1736570672992,9.02848587,185.59,185.54,142.34389145]
[1736570673195,9.02848587,185.58,185.54,141.9307]
[1736570673588,9.02848587,185.59,185.57,20.0]
[1736570674080,9.02848587,185.6,185.57,20.0]
[1736570675198,9.02848587,185.59,185.57,20.0]
[1736570678697,9.02848587,185.6,185.57,20.0]
[1736570679576,9.02848587,185.61,185.57,155.6]
[1736570679787,9.02848587,185.62,185.57,155.6]
[1736570680713,9.02848587,185.61,185.57,155.6]
[1736570683909,9.02848587,185.59,185.57,155.6]
[1736570684795,9.02848587,185.6,185.57,155.6]
[1736570686213,9.02848587,185.61,185.57,155.6]
[1736570686713,9.02848587,185.6,185.57,155.6]
[1736570686917,9.02848587,185.61,185.57,155.6]
[1736570688012,9.02848587,185.62,185.57,155.6]
[1736570690489,23.776884,185.68,185.57,155.6]
[1736570690695,9.02848587,185.62,185.57,155.6]
[1736570692816,9.02848587,185.61,185.57,155.6]
[1736570693000,36.11394348,185.67,185.57,155.6]
[1736570693001,9.02848587,185.6,185.57,155.6]
[1736570693309,9.02848587,185.59,185.57,155.6]
[1736570693515,1.01002275,185.66,185.57,155.6]
[1736570693516,9.02848587,185.6,185.57,155.6]
[1736570694611,9.02848587,185.61,185.57,155.6]
[1736570699409,10.3969,185.69,185.57,155.6]
[1736570699608,9.02848587,185.62,185.57,155.6]
[1736570700520,9.02848587,185.61,185.57,155.6]
[1736570701023,24.78687289,185.66,185.57,20.0]
[1736570701024,9.02848587,185.58,185.57,20.0]
[1736570701524,9.02848587,185.59,185.57,20.0]
[1736570702212,9.02848587,185.58,185.57,20.0]
[1736570704126,9.02848587,185.59,185.57,20.0]
[1736570704306,9.02848587,185.6,185.57,20.0]
[1736570709226,9.02848587,185.6,185.57,155.6]
[1736570710423,9.02848587,185.61,185.57,155.6]
[1736570711141,1.01022086,185.66,185.57,155.6]
[1736570711302,9.02848587,185.64,185.58,20.41291594]
[1736570711706,9.02848587,185.63,185.57,20.0]
[1736570712437,9.02848587,185.62,185.57,155.6]
[1736570712738,9.02848587,185.6,185.57,20.0]
[1736570713308,9.02848587,185.61,185.57,20.0]
[1736570714624,9.02848587,185.61,185.57,155.6]
[1736570715735,9.02848587,185.6,185.57,20.0]
[1736570715905,9.02848587,185.6,185.54,141.9307]
[1736570716111,9.02848587,185.57,185.54,6.3307]
[1736570716307,9.02848587,185.56,185.53,135.6]
[1736570716531,9.02848587,185.55,185.49,146.3677]
[1736570717435,9.02848587,185.55,185.52,20.0]
[1736570717838,9.02848587,185.54,185.52,155.6]
[1736570719540,9.02848587,185.55,185.52,20.0]
[1736570721433,9.02848587,185.54,185.52,20.0]
[1736570724841,9.02848587,185.53,185.49,135.6]
[1736570725062,9.02848587,185.51,185.47,1.5062]
[1736570725639,9.02848587,185.51,185.47,137.1062]
[1736570725847,9.02848587,185.5,185.47,21.5062]
[1736570728229,9.02848587,185.5,185.47,20.0]
[1736570729247,9.02848587,185.49,185.47,20.0]
[1736570730946,9.02848587,185.48,185.42,4.58]
[1736570731128,9.02848587,185.47,185.42,4.58]
[1736570731329,9.02848587,185.47,185.43,20.0]
[1736570731724,1.01095444,185.52,185.43,20.0]
[1736570731936,9.02848587,185.48,185.44,20.0]
[1736570733145,9.02848587,185.47,185.45,20.0]
[1736570734347,9.02848587,185.46,185.39,196.6585]
[1736570734844,9.02848587,185.46,185.42,20.0]
[1736570735151,1.0109453,185.53,185.42,20.0]
[1736570735351,9.02848587,185.48,185.42,155.6]
[1736570735552,9.02848587,185.5,185.46,20.0]
[1736570736059,9.02848587,185.48,185.46,20.0]
[1736570736233,9.02848587,185.48,185.43,20.0]
[1736570736631,9.02848587,185.48,185.44,20.0]
[1736570737463,9.02848587,185.47,185.42,136.01455984]
[1736570737754,9.02848587,185.47,185.42,135.6]
[1736570742454,9.02848587,185.48,185.45,20.0]
[1736570742932,9.02848587,185.47,185.45,20.0]
[1736570744834,1.5645,185.54,185.45,20.0]
[1736570745145,9.02848587,185.51,185.46,0.41423443]
[1736570745340,1.5645,185.54,185.46,136.01423443]
[1736570745553,9.02848587,185.51,185.49,20.0]
[1736570747833,9.02848587,185.5,185.49,20.0]
[1736570751964,1.5645,185.54,185.49,20.0]
[1736570752275,9.02848587,185.51,185.49,20.0]
[1736570754663,9.02848587,185.52,185.49,20.0]
[1736570754975,9.02848587,185.52,185.5,20.0]
[1736570760956,9.02848587,185.51,185.5,20.0]
[1736570762270,9.02848587,185.51,185.47,135.6]
[1736570762452,9.02848587,185.48,185.41,185.279]
[1736570762779,9.02848587,185.49,185.44,155.6]
[1736570763085,9.02848587,185.49,185.45,0.4142516]
[1736570763674,9.02848587,185.49,185.47,20.0]
[1736570764270,9.02848587,185.5,185.47,20.0]
[1736570764470,9.02848587,185.49,185.47,20.0]
[1736570769661,9.02848587,185.5,185.47,20.0]
[1736570771586,9.02848587,185.49,185.46,20.0]
[1736570775077,9.02848587,185.48,185.46,20.0]
[1736570775466,9.02848587,185.47,185.43,135.6]
[1736570775670,9.02848587,185.46,185.41,141.7956]
[1736570775981,9.02848587,185.45,185.4,135.6]
[1736570776154,9.02848587,185.44,185.4,135.6]
[1736570777353,9.02848587,185.43,185.37,146.6223]
[1736570777558,9.02848587,185.43,185.4,20.0]
[1736570777779,9.02848587,185.44,185.4,20.0]
[1736570779498,9.02848587,185.43,185.41,20.0]
[1736570784710,24.78791122,185.48,185.35,155.6]
[1736570784711,9.02848587,185.42,185.35,155.6]
[1736570784879,9.02848587,185.37,185.35,20.0]
[1736570785267,9.02848587,185.38,185.35,20.0]
[1736570787406,9.02848587,185.41,185.38,20.0]
[1736570787887,9.02848587,185.4,185.38,20.0]
[1736570788692,9.02848587,185.41,185.38,20.0]
[1736570790588,9.02848587,185.4,185.38,20.0]
[1736570791020,9.02848587,185.39,185.38,20.0]
[1736570792315,9.02848587,185.39,185.35,20.0]
[1736570792495,9.02848587,185.38,185.35,20.0]
[1736570793935,9.02848587,185.39,185.35,20.0]
[1736570795929,9.02848587,185.38,185.35,20.0]
[1736570799528,9.02848587,185.39,185.35,20.0]
[1736570803540,9.02848587,185.38,185.35,20.0]
[1736570803941,23.776884,185.45,185.35,20.0]
[1736570804240,9.02848587,185.39,185.35,20.0]
[1736570807741,9.02848587,185.38,185.35,20.0]
[1736570807940,23.776884,185.43,185.35,20.0]
[1736570808134,9.02848587,185.38,185.35,20.0]
[1736570810848,9.02848587,185.37,185.35,20.0]
[1736570813728,1.01132282,185.42,185.35,20.0]
[1736570813928,9.02848587,185.38,185.35,20.0]
[1736570815852,5.6692,185.47,185.35,20.0]
[1736570816051,1.6255,185.47,185.38,20.0]
[1736570816228,1.6255,185.47,185.39,155.6]
[1736570816439,9.02848587,185.43,185.39,155.6]
[1736570817456,9.02848587,185.42,185.39,155.6]
[1736570819646,9.02848587,185.4,185.37,135.6]
[1736570819846,9.02848587,185.39,185.35,155.6]
[1736570820254,9.02848587,185.39,185.38,20.0]
[1736570820876,9.02848587,185.39,185.35,20.0]
[1736570821050,1.5857,185.42,185.35,20.0]
[1736570821051,9.02848587,185.36,185.35,20.0]
[1736570821645,9.02848587,185.37,185.35,20.0]
[1736570823460,20.0,185.46,185.35,20.0]
[1736570823656,9.02848587,185.39,185.35,20.0]
[1736570824364,9.02848587,185.38,185.35,20.0]
[1736570832746,9.02848587,185.4,185.38,20.0]